bitfinex/quotes_ETHUSD_20250913
["timestamp","ask_amount","ask_price","bid_price","bid_amount"]
[1757735126174,0.305,4741.6,4741.5,0.001]
[1757735126479,0.7059,4741.6,4741.5,0.001]
[1757735126674,3.5053,4741.6,4741.5,0.1693]
[1757735126873,6.8074,4741.6,4741.5,0.001]
[1757735127289,6.8074,4741.6,4741.5,0.1693]
[1757735129096,3.1044,4741.6,4741.5,0.1693]
[1757735129403,6.8034,4741.6,4741.5,0.1693]
[1757735129750,7.64544,4741.6,4741.5,0.1693]
[1757735132417,7.63956272,4741.6,4741.5,0.1693]
[1757735133517,8.43156272,4741.6,4741.5,0.1693]
[1757735133725,10.54055546,4741.6,4741.5,0.1693]
[1757735134019,10.54055546,4741.6,4741.5,0.001]
[1757735134925,12.75855546,4741.6,4741.5,0.001]
[1757735135997,12.95524198,4741.6,4741.5,0.001]
[1757735136198,12.75855546,4741.6,4741.5,0.001]
[1757735137024,12.74755546,4741.6,4741.5,0.001]
[1757735138124,9.05955546,4741.6,4741.5,0.001]
[1757735138314,12.74755546,4741.6,4741.5,0.001]
[1757735139330,12.9439112,4741.6,4741.5,0.001]
[1757735140022,12.9399112,4741.6,4741.5,0.001]
[1757735142233,5.11921516,4741.1,4741.0,0.001]
[1757735142421,8.79921516,4741.1,4741.0,0.001]
[1757735142626,11.90361516,4741.1,4741.0,0.001]
[1757735143610,12.09951888,4741.1,4741.0,0.001]
[1757735144021,0.792,4738.9,4738.8,0.06]
[1757735144220,6.089,4738.9,4738.8,0.06]
[1757735144394,6.089,4738.9,4738.8,2.3217]
[1757735144595,9.01039713,4738.9,4738.8,0.06]
[1757735145228,9.76789713,4738.9,4738.8,0.06]
[1757735147830,12.19029713,4738.9,4738.8,0.06]
[1757735148335,12.19029713,4738.9,4738.8,0.061]
[1757735149135,5.64249713,4738.9,4738.8,0.061]
[1757735149326,9.74969713,4738.9,4738.8,0.061]
[1757735149831,1.618,4738.9,4738.8,2.4441]
[1757735150159,6.081,4738.9,4738.8,2.4441]
[1757735150456,5.289,4738.9,4738.8,2.4441]
[1757735150659,2.41,4738.9,4738.8,2.4441]
[1757735150872,6.081,4738.9,4738.8,2.4441]
[1757735151043,6.90011146,4738.9,4738.8,2.4441]
[1757735151227,1.618,4739.6,4739.3,0.1683]
[1757735151428,4.463,4739.5,4739.4,2.3731]
[1757735151737,4.463,4739.5,4739.4,2.3831]
[1757735151937,0.792,4739.4,4739.3,0.1683]
[1757735152137,1.4793,4739.4,4739.3,0.1683]
[1757735152969,3.88637172,4739.4,4738.9,2.3731]
[1757735153168,5.1503,4739.4,4739.3,0.1683]
[1757735153465,5.1483,4739.4,4739.3,2.5514]
[1757735154846,7.25827172,4739.4,4739.3,2.5514]
[1757735155157,7.25827172,4739.4,4739.3,0.01]
[1757735155359,3.58927172,4739.4,4739.3,0.1683]
[1757735155567,7.25727172,4739.4,4739.3,0.1783]
[1757735155727,0.792,4739.2,4739.1,0.1683]
[1757735155930,0.792,4739.2,4738.8,0.2293]
[1757735155931,0.792,4738.9,4738.8,0.2293]
[1757735156160,4.5648,4738.9,4738.8,0.2293]
[1757735156548,4.5648,4738.9,4738.8,0.2393]
[1757735156736,7.59711483,4738.9,4738.8,0.2393]
[1757735157062,7.59711483,4738.9,4738.8,0.2293]
[1757735157664,5.48692049,4738.9,4738.8,0.2293]
[1757735157869,4.5648,4738.9,4738.8,2.6124]
[1757735158539,4.46,4738.9,4738.8,2.6124]
[1757735158740,0.792,4738.9,4738.8,5.6124]
[1757735158960,3.72789015,4739.6,4739.5,0.1683]
[1757735159146,8.09740371,4739.6,4739.5,0.1683]
[1757735159462,5.22140371,4739.6,4739.5,0.1683]
[1757735159630,2.31951356,4739.6,4739.5,0.1683]
[1757735159829,0.1048,4739.5,4739.0,0.1683]
[1757735160031,3.668,4739.4,4739.3,0.1683]
[1757735160427,3.668,4739.4,4739.3,0.1783]
[1757735160659,4.46,4739.4,4739.3,2.3831]
[1757735160865,4.46,4739.4,4739.3,0.1783]
[1757735161053,2.90215385,4739.0,4738.9,0.1683]
[1757735161258,6.57015385,4739.0,4738.9,0.1683]
[1757735161557,2.90215385,4739.0,4738.9,0.1683]
[1757735162071,4.46,4739.0,4738.9,0.1683]
[1757735162267,5.0314992,4739.0,4738.8,0.061]
[1757735162466,5.0314992,4739.0,4738.9,0.1683]
[1757735162669,5.7647992,4739.0,4738.8,0.061]
[1757735162830,1.3634992,4739.0,4738.9,0.1683]
[1757735163034,5.0314992,4739.0,4738.9,2.5514]
[1757735163884,5.0314992,4739.0,4738.9,0.1683]
[1757735164184,7.14164902,4739.0,4738.9,0.1683]
[1757735164383,2.90219434,4738.9,4738.8,0.2293]
[1757735164588,3.35847369,4738.9,4738.8,0.2293]
[1757735164883,1.24827935,4738.9,4738.8,0.2393]
[1757735165088,3.35847369,4738.9,4738.8,0.2393]
[1757735165388,4.91627935,4738.9,4738.8,0.2393]
[1757735165550,4.91627935,4738.9,4738.8,0.2293]
[1757735165950,3.35847369,4738.9,4738.8,0.2293]
[1757735166182,3.35847369,4738.9,4738.8,0.2393]
[1757735166354,4.91627935,4738.9,4738.8,2.6124]
[1757735166555,7.32357369,4738.9,4738.8,0.2293]
[1757735167480,7.32357369,4738.9,4738.8,0.061]
[1757735167655,7.32357369,4738.9,4738.8,0.2293]
[1757735167858,7.32357369,4738.9,4738.8,0.061]
[1757735168164,7.32357369,4738.9,4738.8,0.2293]
[1757735168499,4.91627935,4738.9,4738.8,0.061]
[1757735168706,4.91627935,4738.9,4738.8,0.2293]
[1757735168985,1.24827935,4738.9,4738.8,0.2293]
[1757735169170,6.86729434,4738.9,4738.8,0.2293]
[1757735169546,7.30349434,4738.9,4738.8,0.2293]
[1757735169749,7.50070334,4738.9,4738.8,0.2293]
[1757735170350,9.92310334,4738.9,4738.8,0.061]
[1757735170550,9.92313742,4738.9,4738.8,0.061]
[1757735170856,11.12646269,4738.9,4738.8,0.061]
[1757735171472,8.70406269,4738.9,4738.8,0.061]
[1757735171861,11.12646269,4738.9,4738.8,0.061]
[1757735172164,5.03606269,4738.9,4738.8,0.061]
[1757735172368,9.92313742,4738.9,4738.8,0.061]
[1757735172766,6.25513742,4738.9,4738.8,0.061]
[1757735172966,9.92313742,4738.9,4738.8,0.2293]
[1757735173281,7.50073742,4738.9,4738.8,0.2293]
[1757735173478,6.76743742,4738.9,4738.8,0.2293]
[1757735173684,7.48780116,4738.9,4738.8,0.2293]
[1757735173862,5.37760682,4738.9,4738.8,0.2393]
[1757735174210,1.70960682,4738.9,4738.8,0.2393]
[1757735174367,5.37760682,4738.9,4738.8,0.2393]
[1757735174561,5.37760682,4738.9,4738.8,0.2293]
[1757735174756,7.48780116,4738.9,4738.8,0.2293]
[1757735174960,5.37760682,4738.9,4738.8,0.2393]
[1757735175188,5.37760682,4738.9,4738.8,2.7153]
[1757735176198,1.51236374,4738.9,4738.8,2.7153]
[1757735176402,3.72790354,4739.6,4739.3,0.1683]
[1757735176568,0.792,4739.4,4739.3,0.1683]
[1757735176763,6.56997172,4739.4,4739.3,0.1683]
[1757735176964,7.38876889,4739.4,4739.3,0.1683]
[1757735178355,5.27879717,4739.4,4739.3,0.1683]
[1757735178796,7.38876889,4739.4,4739.3,0.1683]
[1757735178971,8.11746889,4739.4,4739.3,0.1683]
[1757735180391,10.52286889,4739.4,4739.3,0.1683]
[1757735180971,2.11009982,4739.2,4739.0,0.1683]
[1757735181180,7.83240216,4739.1,4739.0,0.1683]
[1757735181703,1.619,4740.8,4740.5,0.1683]
[1757735181857,1.619,4740.8,4739.7,0.1683]
[1757735181858,2.10948212,4740.5,4739.7,0.1683]
[1757735182055,0.2959,4740.6,4739.7,0.1683]
[1757735182056,2.10957112,4740.3,4739.7,0.1683]
[1757735182292,3.667,4740.2,4739.7,0.1683]
[1757735182498,0.792,4740.1,4739.7,0.1683]
[1757735182700,0.1048,4739.7,4738.8,0.0672]
[1757735182893,0.792,4739.7,4739.6,0.01]
[1757735183204,0.792,4739.7,4739.6,5.6543]
[1757735183604,4.459,4739.7,4739.6,5.6543]
[1757735184115,1.621,4741.0,4740.6,0.1683]
[1757735184282,1.621,4741.0,4740.9,0.1783]
[1757735184603,5.288,4741.0,4740.9,2.6543]
[1757735185569,0.002,4741.0,4740.9,2.6543]
[1757735185800,0.002,4741.0,4740.9,5.6605]
[1757735189074,0.002,4741.0,4740.9,5.6543]
[1757735189707,0.002,4741.0,4740.9,2.6543]
[1757735190914,3.667,4741.0,4740.9,0.1683]
[1757735191425,10.07505964,4741.0,4740.9,0.1683]
[1757735191922,0.8968,4740.9,4740.3,0.1683]
[1757735192126,2.90130414,4740.9,4740.8,0.1683]
[1757735192290,4.81520414,4740.9,4740.8,0.1683]
[1757735192493,4.0428499,4740.9,4740.8,0.1683]
[1757735192825,6.58495404,4740.9,4740.8,0.1683]
[1757735194824,0.792,4740.7,4740.6,0.1683]
[1757735195037,4.457,4740.7,4740.6,0.1683]
[1757735195427,4.457,4740.7,4740.0,3.0]
[1757735195428,4.457,4740.7,4740.3,0.1683]
[1757735195728,4.7529,4740.7,4740.6,0.1683]
[1757735196031,4.457,4740.7,4740.6,0.1683]
[1757735196396,5.1857,4740.7,4740.6,0.1683]
[1757735196714,4.8898,4740.7,4740.6,0.1683]
[1757735196917,4.457,4740.7,4740.6,0.1683]
[1757735197229,5.27562542,4740.7,4740.6,0.1683]
[1757735197435,0.1048,4740.6,4740.3,0.1683]
[1757735197637,5.27562542,4740.7,4740.3,0.1683]
[1757735197944,5.27562542,4740.7,4740.6,0.1683]
[1757735199606,1.61062542,4740.7,4740.6,0.1683]
[1757735199806,0.4348,4741.0,4740.6,0.1683]
[1757735199807,0.002,4741.0,4740.7,3.0]
[1757735200046,0.002,4741.0,4740.9,3.1783]
[1757735200411,0.002,4741.0,4740.9,2.6543]
[1757735201208,1.0899,4741.0,4740.9,0.1683]
[1757735201406,2.00409,4741.0,4740.9,0.1683]
[1757735201610,2.00260344,4741.0,4740.9,0.1683]
[1757735201810,2.90152662,4740.4,4740.3,0.1683]
[1757735202031,9.69962662,4740.4,4740.3,0.1683]
[1757735202244,9.69962662,4740.4,4740.0,0.1683]
[1757735202245,0.8968,4740.3,4740.0,0.1683]
[1757735202415,0.792,4740.3,4740.0,0.1683]
[1757735202737,1.0879,4740.1,4740.0,0.1683]
[1757735203044,3.9599,4740.1,4740.0,0.1683]
[1757735203244,3.664,4740.1,4740.0,2.6543]
[1757735205273,3.664,4740.1,4740.0,0.1683]
[1757735205862,5.58808,4740.1,4740.0,0.1683]
[1757735206063,8.07738,4740.1,4740.0,0.1683]
[1757735206274,5.58808,4740.1,4740.0,0.1683]
[1757735206572,11.80504013,4740.1,4740.0,0.1683]
[1757735206779,9.69538,4740.1,4740.0,0.1683]
[1757735206962,1.618,4740.1,4740.0,0.1683]
[1757735207139,5.281,4740.1,4740.0,0.1683]
[1757735207566,0.792,4740.7,4740.0,5.5759]
[1757735207772,3.663,4740.6,4740.1,3.0]
[1757735207952,4.455,4740.6,4740.5,0.1683]
[1757735209177,4.455,4740.6,4740.1,2.3976]
[1757735209495,4.455,4740.6,4739.6,0.27648579]
[1757735209496,4.455,4740.6,4740.5,0.1683]
[1757735209788,1.618,4740.8,4740.5,0.1683]
[1757735210090,0.00051344,4741.0,4740.9,0.1683]
[1757735210445,0.00051344,4741.0,4740.9,5.5759]
[1757735215706,0.00051344,4741.0,4740.9,5.4138]
[1757735215913,0.00051344,4741.0,4740.9,5.5821]
[1757735216713,0.00051344,4741.0,4740.9,5.5759]
[1757735216915,0.00051344,4741.0,4740.9,9.2379]
[1757735217115,0.00051344,4741.0,4740.9,10.12286572]
[1757735217315,0.00051344,4741.0,4740.9,10.29116572]
[1757735217519,0.00051344,4741.0,4740.9,40.12286572]
[1757735217723,0.00051344,4741.0,4740.9,39.83917993]
[1757735217926,0.00051344,4741.0,4740.9,40.00747993]
[1757735218222,0.00051344,4741.0,4740.9,40.01367993]
[1757735218394,0.00051344,4741.0,4740.9,39.84537993]
[1757735218589,0.00051344,4741.0,4740.9,36.35267993]
[1757735218814,0.00051344,4741.0,4740.9,39.83917993]
[1757735218996,0.00051344,4741.0,4740.9,39.84537993]
[1757735219179,0.00051344,4741.0,4740.9,40.28749486]
[1757735219603,0.00051344,4741.0,4740.9,10.28749486]
[1757735219803,0.00051344,4741.0,4740.9,40.28749486]
[1757735220038,0.00051344,4741.0,4740.9,40.57018065]
[1757735220640,0.00051344,4741.0,4740.9,36.17817993]
[1757735220825,0.00051344,4741.0,4740.9,39.2369]
[1757735221146,0.00051344,4741.0,4740.9,9.2369]
[1757735221350,0.06,4741.4,4740.9,9.2369]
[1757735221351,0.56824381,4746.1,4741.9,1.01548657]
[1757735221643,0.075,4749.0,4746.5,0.1683]
[1757735221841,1.618,4749.0,4748.9,0.1683]
[1757735221997,1.618,4749.0,4748.3,0.1683]
[1757735221998,0.4747,4749.0,4748.3,0.1683]
[1757735222200,0.3129,4749.0,4748.7,0.1683]
[1757735222647,1.618,4749.2,4749.1,0.1683]
[1757735222935,2.10472352,4751.3,4749.1,0.1683]
[1757735222936,2.3574,4751.4,4750.6,0.1683]
[1757735223134,1.617,4752.3,4750.6,0.30508832]
[1757735223339,0.3204,4750.7,4750.6,0.30508832]
[1757735223637,0.3204,4750.7,4750.3,0.1683]
[1757735223638,6.9135,4750.7,4750.3,0.1683]
[1757735223844,6.9135,4750.7,4748.2,2.7232641]
[1757735223845,1.13725,4750.6,4749.8,0.1683]
[1757735224046,3.792,4750.5,4749.7,0.1683]
[1757735224244,0.3129,4749.9,4748.7,0.1683]
[1757735224536,0.4447,4749.8,4749.7,0.1683]
[1757735225043,3.115,4749.8,4749.3,0.1683]
[1757735225248,2.8974943,4749.5,4749.3,0.1683]
[1757735225417,2.409,4749.5,4749.3,0.1683]
[1757735225605,5.054,4752.3,4749.9,0.1683]
[1757735225606,1.617,4750.2,4749.9,0.1683]
[1757735226006,0.4447,4750.9,4750.6,0.1683]
[1757735226233,1.629,4751.0,4750.6,0.1683]
[1757735227045,0.012,4751.0,4750.6,0.4692]
[1757735227257,2.10366558,4753.7,4750.6,0.4692]
[1757735227258,5.3033,4753.1,4753.0,0.1683]
[1757735227407,1.51,4754.5,4753.9,0.1683]
[1757735227629,0.4447,4759.8,4757.5,0.1683]
[1757735228032,0.47212926,4757.6,4757.1,0.1683]
[1757735228230,4.4181,4757.5,4756.7,0.1683]
[1757735228464,4.49355293,4757.4,4756.7,0.1683]
[1757735228626,4.49355293,4757.4,4756.3,0.1683]
[1757735228827,0.44455293,4757.4,4756.2,0.63046601]
[1757735229075,0.02742926,4757.6,4756.3,30.0]
[1757735229373,0.02742926,4757.6,4756.2,0.63046601]
[1757735229672,2.3574,4757.5,4754.2,0.792]
[1757735229840,0.4447,4757.4,4754.3,30.0]
[1757735230042,4.40810131,4757.3,4754.4,6.26989719]
[1757735230231,3.96340131,4757.3,4754.5,30.0]
[1757735230572,2.10244635,4756.4,4756.2,0.63034016]
[1757735230773,0.1048,4755.0,4754.2,0.1048]
[1757735230978,1.87340131,4757.3,4754.4,3.0]
[1757735231172,1.87340131,4757.3,4755.1,0.1048]
[1757735231173,0.1048,4755.9,4755.1,0.1048]
[1757735231357,1.87340131,4757.3,4754.5,35.733]
[1757735231358,2.31810131,4757.3,4755.3,3.0]
[1757735231558,2.31810131,4757.3,4755.0,3.0]
[1757735231761,0.44474956,4757.2,4755.2,3.0]
[1757735232079,0.02742926,4757.6,4757.3,3.0]
[1757735232275,0.02742926,4757.6,4756.9,3.0]
[1757735232479,0.02742926,4757.6,4755.5,0.792]
[1757735232480,0.02742926,4757.6,4757.1,3.0]
[1757735232660,0.02742926,4757.6,4757.2,2.18091795]
[1757735232842,0.02742926,4757.6,4756.6,4.127]
[1757735232843,0.02742926,4757.6,4756.9,3.63008002]
[1757735233033,0.02742926,4757.6,4757.1,3.0]
[1757735233229,0.01689,4759.0,4757.4,0.792]
[1757735233467,0.01689,4759.0,4757.6,0.792]
[1757735233652,0.01689,4759.0,4757.8,3.792]
[1757735233850,0.01689,4759.0,4758.0,3.0]
[1757735234065,0.01689,4759.0,4757.6,3.0]
[1757735234267,0.01689,4759.0,4757.7,0.02101855]
[1757735234567,0.01689,4759.0,4757.1,3.0]
[1757735234768,0.01689,4759.0,4757.3,3.0]
[1757735235093,0.01689,4759.0,4757.5,3.0]
[1757735235232,0.01689,4759.0,4757.7,3.0]
[1757735235434,0.01689,4759.0,4757.9,3.0]
[1757735235734,0.01689,4759.0,4758.0,30.0]
[1757735235937,0.01689,4759.0,4757.7,3.0]
[1757735236143,0.01689,4759.0,4757.5,3.0]
[1757735236369,0.01689,4759.0,4757.6,0.021019]
[1757735236570,0.01689,4759.0,4757.4,4.168]
[1757735236571,0.01689,4759.0,4757.8,3.0]
[1757735236868,0.01689,4759.0,4758.0,3.0]
[1757735237071,0.01689,4759.0,4757.9,7.174]
[1757735237375,0.01689,4759.0,4758.1,3.0]
[1757735237534,0.01689,4759.0,4757.9,5.788]
[1757735237535,0.01689,4759.0,4758.3,3.0]
[1757735237869,0.01689,4759.0,4758.0,3.0]
[1757735238069,0.01689,4759.0,4758.2,3.0]
[1757735238271,0.01689,4759.0,4758.1,0.63000658]
[1757735238473,0.01689,4759.0,4758.3,3.0]
[1757735238775,0.01689,4759.0,4758.5,3.0]
[1757735238981,0.01689,4759.0,4758.7,3.0]
[1757735239190,0.01689,4759.0,4758.1,0.63000658]
[1757735239372,0.62989811,4762.7,4759.1,0.792]
[1757735239574,0.4411,4764.1,4759.1,0.792]
[1757735239575,0.4411,4763.3,4759.2,35.08800706]
[1757735239788,0.4411,4762.3,4759.4,0.792]
[1757735239960,2.4584,4762.5,4759.6,3.0]
[1757735240159,2.4584,4762.5,4759.8,3.0]
[1757735240160,0.4411,4762.3,4759.8,3.0]
[1757735240487,0.4411,4762.2,4760.0,3.0]
[1757735240703,0.29139275,4762.1,4760.0,3.0]
[1757735240849,3.19089275,4762.1,4759.3,1.613]
[1757735241056,3.19089275,4762.1,4759.4,30.0]
[1757735241057,0.792,4761.9,4759.4,30.0]
[1757735241254,0.792,4761.7,4758.6,30.0]
[1757735241450,0.1048,4759.8,4759.0,0.1048]
[1757735241692,0.002,4759.5,4759.1,30.0]
[1757735241858,0.002,4759.5,4759.4,0.1048]
[1757735242066,0.002,4759.5,4758.7,4.441]
[1757735242352,0.1048,4759.1,4758.8,30.0]
[1757735242552,0.1048,4759.1,4755.6,1.0596479]
[1757735242553,0.1048,4758.5,4757.1,4.5448]
[1757735242753,0.4411,4759.0,4757.1,4.44]
[1757735243189,0.4411,4759.0,4756.8,0.1648]
[1757735243391,0.4411,4759.0,4757.1,2.206]
[1757735243594,2.4584,4759.1,4756.8,0.06]
[1757735243595,0.94116989,4758.9,4756.8,0.06]
[1757735243756,1.2331,4758.9,4758.8,0.06]
[1757735244086,1.2331,4758.9,4756.8,0.06]
[1757735244087,0.792,4758.8,4756.8,0.06]
[1757735244254,0.792,4758.6,4756.8,0.06]
[1757735244455,2.10141425,4758.7,4756.8,0.06]
[1757735244456,2.02465142,4758.5,4756.9,0.63019451]
[1757735244694,2.02465142,4758.5,4757.0,30.0]
[1757735244695,1.612,4758.5,4757.0,30.0]
[1757735244856,1.612,4758.5,4757.1,0.02102121]
[1757735245061,1.612,4758.5,4757.2,30.0]
[1757735245263,1.612,4758.5,4756.9,0.63019451]
[1757735245264,1.612,4758.5,4757.1,3.0]
[1757735245481,1.612,4758.5,4757.3,3.0]
[1757735245795,0.89415,4758.4,4756.9,0.63019451]
[1757735246160,1.612,4758.5,4757.0,33.0]
[1757735246386,1.612,4758.5,4757.2,3.0]
[1757735246589,1.612,4758.5,4757.4,3.0]
[1757735246887,1.612,4758.5,4756.9,5.11619451]
[1757735246888,1.612,4758.5,4756.9,0.63019451]
[1757735247092,0.4411,4758.4,4756.9,0.63019451]
[1757735247291,1.08841,4758.3,4756.9,0.63019451]
[1757735247469,0.792,4758.1,4756.8,0.06]
[1757735247881,2.10185173,4757.8,4756.8,0.06]
[1757735248194,0.792,4757.6,4756.8,0.06]
[1757735248361,2.10220942,4756.9,4756.8,0.06]
[1757735248563,2.8995,4756.9,4756.8,0.06]
[1757735248786,1.612,4757.5,4756.8,0.06]
[1757735248988,4.413,4757.4,4756.8,0.06]
[1757735249160,0.64661,4757.3,4756.8,0.06]
[1757735249676,2.8995,4757.2,4756.8,0.06]
[1757735250198,7.3115,4757.1,4756.8,0.06]
[1757735250562,7.3045,4757.0,4756.8,0.06]
[1757735250761,2.8995,4757.0,4756.8,0.06]
[1757735250983,1.612,4757.5,4756.8,0.06]
[1757735250984,7.659111,4756.9,4756.8,0.06]
[1757735251575,9.76132042,4756.9,4756.8,0.06]
[1757735251894,3.254111,4756.9,4756.8,0.06]
[1757735252196,2.8995,4756.9,4756.8,0.06]
[1757735252897,1.612,4757.0,4756.8,0.06]
[1757735253595,1.612,4757.0,4756.9,0.63025277]
[1757735253793,0.792,4756.9,4754.8,0.06]
[1757735254000,0.792,4756.9,4754.8,0.69025277]
[1757735254186,0.792,4756.7,4754.8,0.69025277]
[1757735254386,0.792,4756.4,4754.8,0.06]
[1757735254590,0.792,4756.2,4754.8,0.06]
[1757735254901,2.10286692,4755.5,4754.8,0.06]
[1757735255120,2.10293157,4755.3,4754.8,0.06]
[1757735255409,0.81049316,4755.2,4754.8,0.06]
[1757735255711,3.70999316,4755.2,4754.8,0.06]
[1757735255878,0.81049316,4755.2,4754.8,0.06]
[1757735256076,2.8995,4755.1,4754.8,0.06]
[1757735256388,1.612,4755.4,4754.8,0.06]
[1757735256592,4.379,4755.3,4754.8,0.06]
[1757735258081,1.612,4755.4,4754.8,0.06]
[1757735258288,4.368,4755.3,4754.8,0.06]
[1757735259190,4.368,4755.3,4754.8,0.061]
[1757735259191,2.8995,4755.2,4754.8,0.061]
[1757735259496,2.10300519,4755.1,4754.8,0.061]
[1757735259681,2.54408611,4755.2,4754.8,0.061]
[1757735259880,0.4411,4755.0,4754.8,0.061]
[1757735260111,0.19470213,4754.9,4754.8,0.061]
[1757735260288,6.35421599,4754.9,4754.8,0.061]
[1757735260484,6.79531599,4754.9,4754.8,0.061]
[1757735260795,8.25622234,4754.9,4754.8,0.061]
[1757735260999,3.90022234,4754.9,4754.8,0.061]
[1757735261199,6.00331599,4754.9,4754.8,0.061]
[1757735261418,3.90022234,4754.9,4754.8,0.061]
[1757735261620,7.44520213,4754.9,4754.8,0.061]
[1757735262114,7.44320213,4754.9,4754.8,0.061]
[1757735262698,7.2485,4754.9,4754.8,0.061]
[1757735263034,9.54597275,4754.9,4754.8,0.061]
[1757735264349,10.33797275,4754.9,4754.8,0.061]
[1757735264632,11.64187093,4754.9,4754.8,0.061]
[1757735264835,3.11127728,4754.9,4754.8,0.061]
[1757735265033,5.945,4754.9,4754.8,0.061]
[1757735265203,1.613,4754.9,4754.8,0.061]
[1757735265399,5.943,4754.9,4754.8,0.061]
[1757735266806,6.3849,4754.9,4754.8,0.061]
[1757735267215,8.6451,4754.9,4754.8,0.061]
[1757735267500,9.70590715,4754.9,4754.8,0.061]
[1757735267915,5.38990715,4754.9,4754.8,0.061]
[1757735268119,9.70190715,4754.9,4754.8,0.061]
[1757735268914,3.12970715,4754.9,4754.8,0.061]
[1757735269114,1.613,4754.9,4754.8,0.061]
[1757735269329,5.919,4754.9,4754.8,0.061]
[1757735270434,1.613,4754.9,4754.8,0.061]
[1757735270611,5.914,4754.9,4754.8,0.061]
[1757735271023,0.4419,4756.5,4754.8,0.061]
[1757735271231,1.613,4755.9,4754.8,0.061]
[1757735271427,4.298,4755.8,4754.8,0.061]
[1757735271650,1.613,4755.9,4754.8,0.061]
[1757735271651,0.2404,4756.8,4755.0,3.70343276]
[1757735271853,4.48974088,4756.7,4755.2,3.0]
[1757735272153,4.295,4756.7,4755.4,3.70343276]
[1757735272366,0.19499805,4756.6,4755.4,0.70343276]
[1757735272673,4.293,4756.5,4755.5,0.72446104]
[1757735272815,1.613,4756.9,4755.6,0.70343276]
[1757735273020,4.48798929,4756.8,4755.7,0.02102739]
[1757735273216,0.19498929,4756.7,4755.7,0.70343276]
[1757735273416,4.293,4756.8,4755.7,0.70343276]
[1757735273417,0.19498929,4756.6,4755.7,0.70343276]
[1757735273650,4.293,4756.8,4755.7,0.70343276]
[1757735273859,0.19513778,4756.7,4755.7,0.70343276]
[1757735274060,4.285,4756.8,4755.8,0.70343276]
[1757735274229,0.19512844,4756.7,4755.8,0.70343276]
[1757735274563,4.8756,4756.8,4755.8,0.70343276]
[1757735274766,0.19516846,4756.7,4755.8,0.70343276]
[1757735274932,4.8756,4756.8,4755.8,0.70343276]
[1757735275132,4.8756,4756.8,4755.5,1.2263641]
[1757735275133,0.19516846,4756.7,4755.9,0.70343276]
[1757735275460,0.19526564,4756.6,4755.9,0.70343276]
[1757735275672,0.66837685,4756.7,4755.9,0.70343276]
[1757735275956,0.1952726,4756.6,4755.9,0.70343276]
[1757735276126,0.1952726,4756.6,4755.0,3.59951]
[1757735276127,0.66837685,4756.7,4756.0,0.70343276]
[1757735276328,0.19527293,4756.6,4756.0,0.70343276]
[1757735276557,0.19527293,4756.5,4756.0,0.70343276]
[1757735276757,4.269,4756.5,4756.0,0.70343276]
[1757735277258,0.1955211,4756.4,4756.1,0.70343276]
[1757735277458,4.265,4756.4,4756.1,0.70343276]
[1757735277961,4.262,4756.4,4756.1,0.70343276]
[1757735278145,4.26,4756.4,4756.1,0.70343276]
[1757735278462,2.8976438,4756.3,4755.6,0.70343276]
[1757735278667,0.1955438,4756.2,4755.6,0.70343276]
[1757735278961,4.4525438,4756.1,4755.6,0.70343276]
[1757735279165,0.1955438,4756.0,4755.7,0.70343276]
[1757735279361,4.257,4756.1,4755.7,0.70343276]
[1757735279766,4.252,4756.0,4755.7,0.70343276]
[1757735280337,0.4419,4755.9,4755.7,0.70343276]
[1757735280538,3.21091182,4755.8,4755.3,0.70343276]
[1757735280741,3.0153,4755.8,4755.3,0.70343276]
[1757735281073,2.89771676,4755.7,4755.2,0.70343276]
[1757735281235,0.90759168,4755.6,4755.1,0.70343276]
[1757735281429,0.90759168,4755.6,4754.8,0.061]
[1757735281430,0.3132,4755.2,4754.8,0.061]
[1757735281660,5.857,4755.1,4754.8,0.061]
[1757735281873,2.52059168,4755.6,4754.8,0.061]
[1757735282054,4.243,4755.4,4754.8,0.061]
[1757735282259,4.243,4755.4,4754.8,0.76443276]
[1757735282767,4.243,4755.4,4754.9,0.02103093]
[1757735282967,4.243,4755.4,4754.8,0.76443276]
[1757735283274,0.3132,4755.0,4754.8,0.061]
[1757735283478,4.239,4754.9,4754.8,0.061]
[1757735285552,7.2543,4754.9,4754.8,0.061]
[1757735286600,1.613,4755.6,4754.8,0.061]
[1757735286802,1.613,4755.6,4755.1,0.70343276]
[1757735287001,1.613,4755.6,4754.8,0.061]
[1757735287002,4.22,4755.5,4755.3,0.70343276]
[1757735287216,4.22,4755.5,4755.4,0.70343276]
[1757735287367,4.22,4755.5,4755.3,0.70343276]
[1757735287565,4.22,4755.5,4755.4,0.70343276]
[1757735287804,4.22,4755.5,4755.3,0.70343276]
[1757735288397,4.212,4755.4,4755.3,0.70343276]
[1757735288708,2.2602,4756.5,4755.4,1.01414534]
[1757735288709,1.613,4756.3,4755.4,1.01414534]
[1757735289028,2.2602,4756.5,4755.7,1.02758433]
[1757735289167,1.613,4757.1,4756.1,1.82117039]
[1757735289512,2.2602,4757.3,4756.6,0.73445975]
[1757735289712,2.2602,4757.3,4756.6,1.1062641]
[1757735290014,2.2602,4757.3,4756.2,0.02102518]
[1757735290015,4.206,4757.7,4756.7,0.02102297]
[1757735290209,4.203,4757.7,4756.3,0.02102474]
[1757735290404,4.203,4757.7,4756.3,30.02102474]